[Event "-chT Youth Countries 2019"]
[Site "Wuerzburg"]
[Date "2019.10.04"]
[Round "4.7"]
[White "Fischer, Darja"]
[Black "Ensslinger, Colin"]
[Result "0-1"]
[ECO "A52"]
[WhiteElo "1604"]
[BlackElo "1687"]
[Annotator "NA"]
[PlyCount "94"]
[EventDate "2019.10.02"]
[EventType "team-tourn"]
[EventRounds "7"]
[EventCountry "GER"]
[SourceTitle "playchess.com"]
[Source "ChessBase"]
[SourceQuality "1"]
[WhiteTeam "Baden 1"]
[BlackTeam "Team Süd"]
[TimeControl "40/5400+30:1800+30"]

1. d4 {[%emt 0:00:00]} Nf6 {[%emt 0:00:30]} 2. c4 {[%emt 0:00:00]} e5 {[%emt 0:00:22]} 3. dxe5 {[%emt 0:07:17]} Ng4 {[%emt 0:00:12]} 4. Nf3 {[%emt 0:04:00]} Nc6 {[%emt 0:00:10]} 5. h3 {[%emt 0:06:26]} Ngxe5 {[%emt 0:00:56]} 6. e4 {[%emt 0:05:12]} Bb4+ {[%emt 0:00:12]} 7. Bd2 {[%emt 0:01:10]} a5 {[%emt 0:00:53]} 8. a3 {[%emt 0:03:21]} Bxd2+ {[%emt 0:01:54]} 9. Nbxd2 {[%emt 0:00:18]} d6 {[%emt 0:00:31]} 10. Be2 {[%emt 0:02:56]} Be6 {[%emt 0:00:53]} 11. O-O {[%emt 0:04:56]} O-O {[%emt 0:00:30]} 12. Qc2 {[%emt 0:02:41]} Qf6 {[%emt 0:06:38]} 13. Nxe5 {[%emt 0:07:15]} Nd4 {[%emt 0:01:23]} 14. Qd1 {[%emt 0:02:18]} dxe5 {[%emt 0:01:16]} 15. Bg4 {[%emt 0:06:59]} Rfd8 {[%emt 0:01:19]} 16. Bxe6 {[%emt 0:02:57]} Nxe6 {[%emt 0:00:41]} 17. Qe1 {[%emt 0:06:00]} Nf4 {[%emt 0:02:19]} 18. Kh2 {[%emt 0:07:22]} Qg5 {[%emt 0:01:54]} 19. g3 {[%emt 0:03:38]} Rd3 {[%emt 0:07:19]} 20. Rh1 {[%emt 0:06:43]} Qh6 {[%emt 0:05:31]} 21. h4 {[%emt 0:03:26]} Ne6 {[%emt 0:01:53]} 22. Nf1 {[%emt 0:02:38]} Nd4 {[%emt 0:01:25]} 23. Qc1 {[%emt 0:01:33]} Qf6 {[%emt 0:00:28]} 24. f4 {[%emt 0:03:07]} Rf3 {[%emt 0:03:48]} 25. f5 {[%emt 0:03:03]} Nb3 {[%emt 0:02:10]} 26. Qd1 {[%emt 0:01:39]} Rf2+ {[%emt 0:00:14]} 27. Kh3 {[%emt 0:02:08]} Nxa1 {[%emt 0:00:18]} 28. Qxa1 {[%emt 0:00:24]} Qb6 {[%emt 0:01:10]} 29. Rh2 {[%emt 0:00:35]} Rxh2+ {[%emt 0:01:26]} 30. Nxh2 {[%emt 0:00:15]} Qd4 {[%emt 0:00:14]} 31. Qb1 {[%emt 0:01:41]} f6 {[%emt 0:01:29]} 32. Qc2 {[%emt 0:00:19]} Rd8 {[%emt 0:00:21]} 33. Qe2 {[%emt 0:02:29]} Qd3 {[%emt 0:00:13]} 34. Qe1 {[%emt 0:00:22]} b6 {[%emt 0:00:18]} 35. Nf1 {[%emt 0:00:35]} Qxc4 {[%emt 0:00:14]} 36. Qb1 {[%emt 0:00:39]} Rd3 {[%emt 0:01:34]} 37. Qe1 {[%emt 0:00:49]} Qd4 {[%emt 0:01:01]} 38. Qe2 {[%emt 0:00:35]} c5 {[%emt 0:00:41]} 39. Kh2 {[%emt 0:00:41]} c4 {[%emt 0:00:19]} 40. Kh3 {[%emt 0:00:17]} b5 {[%emt 0:00:51]} 41. Kh2 {[%emt 0:30:41]} b4 {[%emt 0:30:30]} 42. axb4 {[%emt 0:00:00]} axb4 {[%emt 0:00:00]} 43. Kh3 {[%emt 0:00:00]} Rb3 {[%emt 0:00:00]} 44. Nd2 {[%emt 0:00:00]} Rxb2 {[%emt 0:00:00]} 45. Qxc4+ {[%emt 0:00:00]} Qxc4 {[%emt 0:00:00]} 46. Nxc4 {[%emt 0:00:00]} Re2 {[%emt 0:00:00]} 47. Na5 {[%emt 0:00:00]} Rxe4 {[%emt 0:00:00] normal} 0-1

[Event "-chT Youth Countries 2019"]
[Site "Wuerzburg"]
[Date "2019.10.04"]
[Round "4.7"]
[White "Sauer, Tim"]
[Black "Bungarten, Jona"]
[Result "1/2-1/2"]
[ECO "D35"]
[WhiteElo "1597"]
[BlackElo "1669"]
[Annotator "NA"]
[PlyCount "48"]
[EventDate "2019.10.02"]
[EventType "team-tourn"]
[EventRounds "7"]
[EventCountry "GER"]
[SourceTitle "playchess.com"]
[Source "ChessBase"]
[SourceQuality "1"]
[WhiteTeam "Niedersachsen"]
[BlackTeam "Nordrhein-Westfalen"]
[TimeControl "40/5400+30:1800+30"]

1. c4 {[%emt 0:00:00]} e6 {[%emt 0:00:00]} 2. Nc3 {[%emt 0:00:00]} d5 {[%emt 0:00:00]} 3. cxd5 {[%emt 0:00:00]} exd5 {[%emt 0:00:00]} 4. d4 {[%emt 0:00:00]} Nf6 {[%emt 0:00:31]} 5. Bg5 {[%emt 0:00:21]} Be7 {[%emt 0:00:50]} 6. e3 {[%emt 0:00:06]} Bf5 {[%emt 0:00:31]} 7. Bxf6 {[%emt 0:00:59]} Bxf6 {[%emt 0:00:23]} 8. Qb3 {[%emt 0:00:05]} c6 {[%emt 0:07:57]} 9. Qxb7 {[%emt 0:01:49]} Qb6 {[%emt 0:00:46]} 10. Qxb6 {[%emt 0:25:56]} axb6 {[%emt 0:00:07]} 11. Nf3 {[%emt 0:00:52]} O-O {[%emt 0:01:35]} 12. Be2 {[%emt 0:01:11]} Rd8 {[%emt 0:04:08]} 13. O-O {[%emt 0:01:32]} Na6 {[%emt 0:05:33]} 14. a3 {[%emt 0:04:11]} Nc7 {[%emt 0:00:38]} 15. Rac1 {[%emt 0:04:52]} c5 {[%emt 0:01:54]} 16. Rfd1 {[%emt 0:00:49]} c4 {[%emt 0:01:47]} 17. Na2 {[%emt 0:01:01]} b5 {[%emt 0:03:42]} 18. Nb4 {[%emt 0:04:31]} Rd6 {[%emt 0:02:13]} 19. Ne1 {[%emt 0:05:57]} Ra7 {[%emt 0:05:52]} 20. Bf3 {[%emt 0:02:24]} Kf8 {[%emt 0:09:26]} 21. Kf1 {[%emt 0:01:17]} Ra8 {[%emt 0:02:52]} 22. Ke2 {[%emt 0:06:13]} Rad8 {[%emt 0:02:30]} 23. Rd2 {[%emt 0:01:51]} Na8 {[%emt 0:00:51]} 24. Na2 {[%emt 0:06:20]} Rb8 {normal} 1/2-1/2

[Event "-chT Youth Countries 2019"]
[Site "Wuerzburg"]
[Date "2019.10.04"]
[Round "4.7"]
[White "Haubold, Sebastian Marcel"]
[Black "Kempe, Caius Emilian"]
[Result "1/2-1/2"]
[ECO "B35"]
[WhiteElo "1585"]
[BlackElo "1835"]
[Annotator "NA"]
[PlyCount "71"]
[EventDate "2019.10.02"]
[EventType "team-tourn"]
[EventRounds "7"]
[EventCountry "GER"]
[SourceTitle "playchess.com"]
[Source "ChessBase"]
[SourceQuality "1"]
[WhiteTeam "Sachsen-Anhalt"]
[BlackTeam "Sachsen"]
[TimeControl "40/5400+30:1800+30"]

1. e4 {[%emt 0:00:00]} c5 {[%emt 0:00:00]} 2. Nf3 {[%emt 0:00:13]} Nc6 {[%emt 0:00:00]} 3. d4 {[%emt 0:00:45]} cxd4 {[%emt 0:00:00]} 4. Nxd4 {[%emt 0:00:32]} g6 {[%emt 0:00:00]} 5. Nc3 {[%emt 0:01:43]} Bg7 {[%emt 0:00:08]} 6. Be3 {[%emt 0:01:42]} Nf6 {[%emt 0:00:19]} 7. Bc4 {[%emt 0:01:54]} O-O {[%emt 0:00:08]} 8. Bb3 {[%emt 0:01:23]} Re8 {[%emt 0:03:33]} 9. f3 {[%emt 0:08:06]} e6 {[%emt 0:00:56]} 10. f4 {[%emt 0:09:32]} d6 {[%emt 0:01:12]} 11. h3 {[%emt 0:06:59]} Bd7 {[%emt 0:23:21]} 12. Ndb5 {[%emt 0:05:33]} d5 {[%emt 0:18:14]} 13. Nd6 {[%emt 0:02:13]} Re7 {[%emt 0:04:54]} 14. e5 {[%emt 0:04:52]} Ne8 {[%emt 0:01:00]} 15. Nxb7 {[%emt 0:06:29]} Qc7 {[%emt 0:01:10]} 16. Bc5 {[%emt 0:01:38]} Qxb7 {[%emt 0:00:29]} 17. Bxe7 {[%emt 0:01:42]} Nxe7 {[%emt 0:00:19]} 18. O-O {[%emt 0:02:56]} Nf5 {[%emt 0:01:39]} 19. Qd2 {[%emt 0:03:33]} a5 {[%emt 0:00:51]} 20. a4 {[%emt 0:00:52]} Nc7 {[%emt 0:00:35]} 21. g4 {[%emt 0:06:00]} Qa7+ {[%emt 0:02:12]} 22. Kh2 {[%emt 0:02:07]} Nd4 {[%emt 0:00:17]} 23. Ba2 {[%emt 0:05:00]} Rb8 {[%emt 0:04:42]} 24. b3 {[%emt 0:01:56]} Nc6 {[%emt 0:01:39]} 25. Rae1 {[%emt 0:04:21]} Ne7 {[%emt 0:03:37]} 26. h4 {[%emt 0:03:45]} Rb4 {[%emt 0:02:11]} 27. h5 {[%emt 0:05:03]} Qd4 {[%emt 0:01:19]} 28. Qxd4 {[%emt 0:01:43]} Rxd4 {[%emt 0:00:00]} 29. hxg6 {[%emt 0:01:01]} Nxg6 {[%emt 0:01:21]} 30. Kg3 {[%emt 0:01:25]} Na6 {[%emt 0:06:34]} 31. Rf3 {[%emt 0:02:41]} Nb4 {[%emt 0:00:50]} 32. Bb1 {[%emt 0:00:10]} Rd2 {[%emt 0:01:51]} 33. Re2 {[%emt 0:00:42]} Rxe2 {[%emt 0:00:17]} 34. Nxe2 {[%emt 0:00:02]} Ne7 {[%emt 0:00:31]} 35. c3 {[%emt 0:01:54]} Nbc6 {[%emt 0:00:49]} 36. Bd3 {[%emt 0:00:57] normal} 1/2-1/2

[Event "-chT Youth Countries 2019"]
[Site "Wuerzburg"]
[Date "2019.10.04"]
[Round "4.7"]
[White "Wucherer, Sophie"]
[Black "Woerz, Ann-Sophie"]
[Result "1-0"]
[ECO "A41"]
[WhiteElo "1531"]
[BlackElo "1500"]
[Annotator "NA"]
[PlyCount "95"]
[EventDate "2019.10.02"]
[EventType "team-tourn"]
[EventRounds "7"]
[EventCountry "GER"]
[SourceTitle "playchess.com"]
[Source "ChessBase"]
[SourceQuality "1"]
[WhiteTeam "Mecklenburg-Vorpommern"]
[BlackTeam "Württemberg"]
[TimeControl "40/5400+30:1800+30"]

1. d4 {[%emt 0:00:00]} d6 {[%emt 0:00:00]} 2. Nf3 {[%emt 0:00:10]} Nf6 {[%emt 0:00:16]} 3. c4 {[%emt 0:00:21]} c6 {[%emt 0:00:25]} 4. Nc3 {[%emt 0:01:22]} Nbd7 {[%emt 0:00:33]} 5. h3 {[%emt 0:03:05]} Qc7 {[%emt 0:01:22]} 6. Qc2 {[%emt 0:03:49]} e5 {[%emt 0:03:54]} 7. e4 {[%emt 0:04:24]} Be7 {[%emt 0:01:25]} 8. g3 {[%emt 0:00:33]} O-O {[%emt 0:01:51]} 9. Bg2 {[%emt 0:00:11]} Re8 {[%emt 0:00:34]} 10. O-O {[%emt 0:00:15]} b6 {[%emt 0:00:43]} 11. b3 {[%emt 0:08:57]} Bb7 {[%emt 0:01:20]} 12. Bb2 {[%emt 0:00:40]} Bf8 {[%emt 0:03:02]} 13. Rfe1 {[%emt 0:00:22]} a6 {[%emt 0:09:58]} 14. Rad1 {[%emt 0:01:07]} b5 {[%emt 0:01:49]} 15. cxb5 {[%emt 0:09:00]} axb5 {[%emt 0:00:19]} 16. Nxb5 {[%emt 0:03:33]} Qb6 {[%emt 0:06:19]} 17. Nc3 {[%emt 0:00:24]} Rac8 {[%emt 0:09:54]} 18. Qb1 {[%emt 0:08:48]} Nh5 {[%emt 0:02:34]} 19. Na4 {[%emt 0:17:38]} Qa7 {[%emt 0:01:20]} 20. Bc1 {[%emt 0:00:27]} exd4 {[%emt 0:01:53]} 21. Nxd4 {[%emt 0:00:29]} c5 {[%emt 0:02:13]} 22. Nb5 {[%emt 0:02:21]} Qa5 {[%emt 0:01:22]} 23. Na3 {[%emt 0:02:42]} Ba6 {[%emt 0:11:05]} 24. Bd2 {[%emt 0:04:12]} Qc7 {[%emt 0:04:06]} 25. Rc1 {[%emt 0:01:02]} Ne5 {[%emt 0:02:01]} 26. Nb2 {[%emt 0:00:14]} Qd7 {[%emt 0:03:18]} 27. Kh2 {[%emt 0:04:52]} Re6 {[%emt 0:02:10]} 28. Nac4 {[%emt 0:00:33]} Rg6 {[%emt 0:03:10]} 29. Nb6 {[%emt 0:02:57]} Qe6 {[%emt 0:02:43]} 30. Nxc8 {[%emt 0:02:12]} Bxc8 {[%emt 0:00:02]} 31. Rc3 {[%emt 0:01:24]} Qf6 {[%emt 0:03:06]} 32. Rf1 {[%emt 0:05:34]} Ba6 {[%emt 0:01:52]} 33. f4 {[%emt 0:04:37]} Bxf1 {[%emt 0:02:16]} 34. Qxf1 {[%emt 0:04:24]} Nc6 {[%emt 0:05:30]} 35. g4 {[%emt 0:00:25]} Qd4 {[%emt 0:00:13]} 36. Qe1 {[%emt 0:02:10]} Nxf4 {[%emt 0:03:33]} 37. Bxf4 {[%emt 0:00:15]} Rf6 {[%emt 0:00:04]} 38. Bg3 {[%emt 0:00:47]} Nb4 {[%emt 0:01:43]} 39. Qe3 {[%emt 0:01:50]} Qxe3 {[%emt 0:02:26]} 40. Rxe3 {[%emt 0:00:06]} Nxa2 {[%emt 0:00:14]} 41. Nd3 {[%emt 0:06:31]} Re6 {[%emt 0:02:00]} 42. Be1 {[%emt 0:00:43]} d5 {[%emt 0:00:45]} 43. Re2 {[%emt 0:01:29]} Nb4 {[%emt 0:01:06]} 44. Nf4 {[%emt 0:01:36]} Bd6 {[%emt 0:01:02]} 45. Bg3 {[%emt 0:01:00]} Bxf4 {[%emt 0:00:41]} 46. Bxf4 {[%emt 0:00:10]} d4 {[%emt 0:00:21]} 47. e5 {[%emt 0:04:55]} Kf8 {[%emt 0:01:46]} 48. Bd2 {[%emt 0:01:28] normal} 1-0

[Event "-chT Youth Countries 2019"]
[Site "Wuerzburg"]
[Date "2019.10.04"]
[Round "4.8"]
[White "Pohle, Saskia"]
[Black "Voigt, Anastasia"]
[Result "0-1"]
[ECO "C54"]
[WhiteElo "1716"]
[BlackElo "1457"]
[Annotator "NA"]
[PlyCount "36"]
[EventDate "2019.10.02"]
[EventType "team-tourn"]
[EventRounds "7"]
[EventCountry "GER"]
[SourceTitle "playchess.com"]
[Source "ChessBase"]
[SourceQuality "1"]
[WhiteTeam "Sachsen"]
[BlackTeam "Sachsen-Anhalt"]
[TimeControl "40/5400+30:1800+30"]

1. e4 {[%emt 0:00:00]} e5 {[%emt 0:00:00]} 2. Nf3 {[%emt 0:00:00]} Nc6 {[%emt 0:00:00]} 3. d4 {[%emt 0:00:00]} exd4 {[%emt 0:00:00]} 4. Bc4 {[%emt 0:00:00]} Bc5 {[%emt 0:00:00]} 5. c3 {[%emt 0:00:08]} Nf6 {[%emt 0:00:10]} 6. e5 {[%emt 0:00:56]} d5 {[%emt 0:00:15]} 7. exf6 {[%emt 0:03:26]} dxc4 {[%emt 0:00:14]} 8. fxg7 {[%emt 0:01:16]} Rg8 {[%emt 0:01:00]} 9. Bh6 {[%emt 0:03:46]} Qd6 {[%emt 0:03:34]} 10. Qd2 {[%emt 0:07:14]} Be6 {[%emt 0:03:17]} 11. O-O {[%emt 0:02:59]} O-O-O {[%emt 0:00:49]} 12. Na3 {[%emt 0:20:51]} Bxa3 {[%emt 0:12:38]} 13. bxa3 {[%emt 0:00:03]} d3 {[%emt 0:01:10]} 14. Rab1 {[%emt 0:06:46]} Bf5 {[%emt 0:03:20]} 15. Rb5 {[%emt 0:04:06]} Bg6 {[%emt 0:08:07]} 16. Rfb1 {[%emt 0:05:58]} b6 {[%emt 0:01:19]} 17. a4 {[%emt 0:06:05]} a5 {[%emt 0:02:16]} 18. Bf4 {[%emt 0:00:24]} Qe7 {normal} 0-1

[Event "-chT Youth Countries 2019"]
[Site "Wuerzburg"]
[Date "2019.10.04"]
[Round "4.8"]
[White "von Beckh, Frieda"]
[Black "Braeutigam, Katerina"]
[Result "0-1"]
[ECO "B13"]
[WhiteElo "1541"]
[BlackElo "1630"]
[Annotator "NA"]
[PlyCount "96"]
[EventDate "2019.10.02"]
[EventType "team-tourn"]
[EventRounds "7"]
[EventCountry "GER"]
[SourceTitle "playchess.com"]
[Source "ChessBase"]
[SourceQuality "1"]
[WhiteTeam "Hessen"]
[BlackTeam "Schleswig-Holstein"]
[TimeControl "40/5400+30:1800+30"]

1. e4 {[%emt 0:00:00]} c6 {[%emt 0:00:00]} 2. d4 {[%emt 0:00:00]} d5 {[%emt 0:00:00]} 3. exd5 {[%emt 0:00:00]} cxd5 {[%emt 0:00:00]} 4. Bd3 {[%emt 0:00:00]} Nc6 {[%emt 0:00:14]} 5. c3 {[%emt 0:00:01]} Qc7 {[%emt 0:01:28]} 6. Ne2 {[%emt 0:00:19]} Bg4 {[%emt 0:01:20]} 7. O-O {[%emt 0:00:34]} e6 {[%emt 0:00:33]} 8. Qe1 {[%emt 0:00:17]} Bd6 {[%emt 0:01:05]} 9. f3 {[%emt 0:01:10]} Bh5 {[%emt 0:00:53]} 10. Qh4 {[%emt 0:01:40]} Nf6 {[%emt 0:02:10]} 11. Bg5 {[%emt 0:01:40]} Bg6 {[%emt 0:05:30]} 12. Bxg6 {[%emt 0:01:18]} fxg6 {[%emt 0:03:22]} 13. Bxf6 {[%emt 0:02:14]} gxf6 {[%emt 0:00:18]} 14. Qxf6 {[%emt 0:00:11]} Kd7 {[%emt 0:03:17]} 15. f4 {[%emt 0:02:00]} Be7 {[%emt 0:00:55]} 16. Qg7 {[%emt 0:00:48]} g5 {[%emt 0:07:17]} 17. f5 {[%emt 0:04:58]} Raf8 {[%emt 0:12:06]} 18. Ng3 {[%emt 0:02:37]} exf5 {[%emt 0:18:09]} 19. Nxf5 {[%emt 0:00:53]} Rhg8 {[%emt 0:01:30]} 20. Qh6 {[%emt 0:00:54]} Kd8 {[%emt 0:13:02]} 21. Nd2 {[%emt 0:03:16]} g4 {[%emt 0:07:43]} 22. Rae1 {[%emt 0:01:55]} Bg5 {[%emt 0:02:44]} 23. Qe6 {[%emt 0:04:41]} Bxd2 {[%emt 0:01:38]} 24. Re2 {[%emt 0:00:51]} Bg5 {[%emt 0:01:49]} 25. Qxd5+ {[%emt 0:00:53]} Qd7 {[%emt 0:01:50]} 26. Qc5 {[%emt 0:03:30]} Rf6 {[%emt 0:03:42]} 27. Qc4 {[%emt 0:04:43]} Rgf8 {[%emt 0:01:42]} 28. Ng3 {[%emt 0:00:49]} Bf4 {[%emt 0:02:27]} 29. Rfe1 {[%emt 0:03:11]} Bxg3 {[%emt 0:03:37]} 30. hxg3 {[%emt 0:00:10]} Qf7 {[%emt 0:00:18]} 31. Re6 {[%emt 0:04:15]} Rh6 {[%emt 0:03:57]} 32. Qd5+ {[%emt 0:07:29]} Kc8 {[%emt 0:00:49]} 33. Re8+ {[%emt 0:05:05]} Rxe8 {[%emt 0:00:24]} 34. Qxf7 {[%emt 0:00:27]} Rxe1+ {[%emt 0:00:03]} 35. Kf2 {[%emt 0:00:31]} Rhh1 {[%emt 0:00:11]} 36. Qf5+ {[%emt 0:02:09]} Kc7 {[%emt 0:00:41]} 37. Qf7+ {[%emt 0:00:27]} Ne7 {[%emt 0:00:49]} 38. Qc4+ {[%emt 0:00:33]} Kd8 {[%emt 0:00:32]} 39. Qb5 {[%emt 0:01:32]} Rhf1+ {[%emt 0:00:15]} 40. Qxf1 {[%emt 0:00:08]} Rxf1+ {[%emt 0:00:04]} 41. Kxf1 {[%emt 0:30:12]} Nf5 {[%emt 0:30:20]} 42. Kf2 {[%emt 0:01:17]} Ke7 {[%emt 0:00:45]} 43. d5 {[%emt 0:01:10]} b5 {[%emt 0:00:26]} 44. b3 {[%emt 0:01:18]} Kd6 {[%emt 0:00:25]} 45. Ke2 {[%emt 0:01:13]} Kxd5 {[%emt 0:00:26]} 46. Kd3 {[%emt 0:00:28]} Nxg3 {[%emt 0:00:47]} 47. Ke3 {[%emt 0:01:49]} Nh5 {[%emt 0:00:00]} 48. a3 {[%emt 0:00:00]} a5 {[%emt 0:00:00] normal} 0-1

[Event "-chT Youth Countries 2019"]
[Site "Wuerzburg"]
[Date "2019.10.04"]
[Round "4.8"]
[White "Ruhmke, Rebecca"]
[Black "Ulrich, Helena Irene"]
[Result "0-1"]
[ECO "B30"]
[WhiteElo "1404"]
[BlackElo "1355"]
[Annotator "NA"]
[PlyCount "86"]
[EventDate "2019.10.02"]
[EventType "team-tourn"]
[EventRounds "7"]
[EventCountry "GER"]
[SourceTitle "playchess.com"]
[Source "ChessBase"]
[SourceQuality "1"]
[WhiteTeam "Hamburg/Schleswig-Holstein"]
[BlackTeam "Thüringen"]
[TimeControl "40/5400+30:1800+30"]

1. e4 c5 {[%emt 0:00:00]} 2. Nf3 {[%emt 0:00:00]} Nc6 {[%emt 0:00:00]} 3. c3 {[%emt 0:00:05]} Nf6 {[%emt 0:00:17]} 4. e5 {[%emt 0:00:41]} Nd5 {[%emt 0:00:10]} 5. d4 {[%emt 0:00:22]} cxd4 {[%emt 0:00:14]} 6. cxd4 {[%emt 0:00:17]} e6 {[%emt 0:00:53]} 7. Nc3 {[%emt 0:03:28]} d6 {[%emt 0:01:24]} 8. Bb5 {[%emt 0:11:06]} Be7 {[%emt 0:04:19]} 9. O-O {[%emt 0:03:54]} O-O {[%emt 0:03:21]} 10. Qe2 {[%emt 0:06:43]} a6 {[%emt 0:02:57]} 11. Bd3 {[%emt 0:06:28]} Qc7 {[%emt 0:06:26]} 12. Qe4 {[%emt 0:03:54]} f5 {[%emt 0:03:42]} 13. exf6 {[%emt 0:03:11]} Nxf6 {[%emt 0:00:35]} 14. Qe2 {[%emt 0:04:30]} b5 {[%emt 0:06:21]} 15. Ne4 {[%emt 0:07:12]} Nb4 {[%emt 0:14:03]} 16. Bb1 {[%emt 0:08:32]} Nbd5 {[%emt 0:06:40]} 17. Bg5 {[%emt 0:03:12]} Qb7 {[%emt 0:13:11]} 18. Nxf6+ {[%emt 0:01:21]} Nxf6 {[%emt 0:01:10]} 19. Qd3 {[%emt 0:03:27]} g6 {[%emt 0:05:07]} 20. Bh6 {[%emt 0:01:53]} Re8 {[%emt 0:02:06]} 21. Ng5 {[%emt 0:03:22]} Bf8 {[%emt 0:07:22]} 22. Bxf8 {[%emt 0:08:13]} Rxf8 {[%emt 0:01:19]} 23. h4 {[%emt 0:01:52]} Nh5 {[%emt 0:03:22]} 24. f3 {[%emt 0:03:53]} Rf4 {[%emt 0:02:36]} 25. Bc2 {[%emt 0:02:27]} Rxh4 {[%emt 0:01:09]} 26. Kf2 {[%emt 0:01:57]} Rh2 {[%emt 0:01:55]} 27. Rg1 {[%emt 0:01:20]} Nf4 {[%emt 0:00:18]} 28. Qe4 {[%emt 0:01:12]} Qxe4 {[%emt 0:00:05]} 29. Bxe4 {[%emt 0:00:12]} d5 {[%emt 0:00:28]} 30. Kg3 {[%emt 0:00:43]} Rxg2+ {[%emt 0:02:32]} 31. Rxg2 {[%emt 0:00:31]} Nxg2 {[%emt 0:00:05]} 32. Kxg2 {[%emt 0:00:11]} dxe4 {[%emt 0:00:04]} 33. fxe4 {[%emt 0:00:18]} h6 {[%emt 0:00:30]} 34. Nf3 {[%emt 0:01:40]} Bb7 {[%emt 0:00:43]} 35. Re1 {[%emt 0:00:26]} Rc8 {[%emt 0:00:50]} 36. Re2 {[%emt 0:00:44]} g5 {[%emt 0:00:51]} 37. Kg3 {[%emt 0:00:34]} Rf8 {[%emt 0:00:50]} 38. Nd2 {[%emt 0:03:45]} Rf4 {[%emt 0:01:09]} 39. Re3 {[%emt 0:01:21]} Kg7 {[%emt 0:00:33]} 40. Re2 {[%emt 0:03:56]} h5 {[%emt 0:00:47]} 41. Nf3 {[%emt 0:30:56]} h4+ {[%emt 0:32:27]} 42. Kg2 {[%emt 0:00:00]} Bxe4 {[%emt 0:00:00]} 43. Rxe4 {[%emt 0:00:00]} Rxe4 {[%emt 0:00:00] normal} 0-1

[Event "-chT Youth Countries 2019"]
[Site "Wuerzburg"]
[Date "2019.10.04"]
[Round "4.8"]
[White "Bakó, Isabella"]
[Black "Visvikis, Kassandra"]
[Result "0-1"]
[ECO "C88"]
[WhiteElo "1266"]
[BlackElo "1531"]
[Annotator "NA"]
[PlyCount "111"]
[EventDate "2019.10.02"]
[EventType "team-tourn"]
[EventRounds "7"]
[EventCountry "GER"]
[SourceTitle "playchess.com"]
[Source "ChessBase"]
[SourceQuality "1"]
[WhiteTeam "Team Süd"]
[BlackTeam "Baden 1"]
[TimeControl "40/5400+30:1800+30"]

1. e4 {[%emt 0:00:00]} e5 {[%emt 0:00:00]} 2. Nf3 {[%emt 0:00:00]} Nc6 {[%emt 0:00:00]} 3. Bb5 {[%emt 0:00:00]} a6 {[%emt 0:00:00]} 4. Ba4 {[%emt 0:00:04]} Nf6 {[%emt 0:00:00]} 5. O-O {[%emt 0:00:30]} b5 {[%emt 0:00:00]} 6. Bb3 {[%emt 0:00:39]} Be7 {[%emt 0:00:05]} 7. Re1 {[%emt 0:00:27]} d6 {[%emt 0:00:22]} 8. c3 {[%emt 0:00:39]} Bb7 {[%emt 0:00:15]} 9. d4 {[%emt 0:00:42]} Nb8 {[%emt 0:00:38]} 10. Nbd2 {[%emt 0:01:20]} Nbd7 {[%emt 0:00:20]} 11. Bc2 {[%emt 0:02:29]} O-O {[%emt 0:02:55]} 12. Nf1 {[%emt 0:00:34]} Re8 {[%emt 0:00:31]} 13. Ng3 {[%emt 0:00:54]} Bf8 {[%emt 0:01:22]} 14. d5 {[%emt 0:04:05]} c6 {[%emt 0:02:12]} 15. dxc6 {[%emt 0:02:10]} Bxc6 {[%emt 0:00:05]} 16. Nf5 {[%emt 0:00:48]} Nc5 {[%emt 0:03:41]} 17. Nd2 {[%emt 0:04:21]} g6 {[%emt 0:19:40]} 18. Ng3 {[%emt 0:01:20]} Qc7 {[%emt 0:14:54]} 19. Nf3 {[%emt 0:01:17]} h6 {[%emt 0:03:32]} 20. b4 {[%emt 0:03:22]} Ne6 {[%emt 0:02:20]} 21. Be3 {[%emt 0:01:19]} Rad8 {[%emt 0:02:54]} 22. Qd2 {[%emt 0:02:39]} Kh7 {[%emt 0:01:31]} 23. h3 {[%emt 0:00:44]} d5 {[%emt 0:02:26]} 24. exd5 {[%emt 0:01:46]} Nxd5 {[%emt 0:00:47]} 25. Qc1 {[%emt 0:02:27]} f5 {[%emt 0:09:55]} 26. Bd2 {[%emt 0:02:49]} Nef4 {[%emt 0:04:34]} 27. Ne2 {[%emt 0:04:02]} Bb7 {[%emt 0:10:04]} 28. Nxf4 {[%emt 0:01:49]} Nxf4 {[%emt 0:01:27]} 29. Bxf4 {[%emt 0:01:39]} exf4 {[%emt 0:00:03]} 30. Rxe8 {[%emt 0:00:37]} Rxe8 {[%emt 0:00:03]} 31. Qd2 {[%emt 0:02:46]} Bg7 {[%emt 0:03:43]} 32. Re1 {[%emt 0:01:27]} Rxe1+ {[%emt 0:00:59]} 33. Qxe1 {[%emt 0:03:18]} Qxc3 {[%emt 0:00:16]} 34. Qxc3 {[%emt 0:01:30]} Bxc3 {[%emt 0:00:02]} 35. Kf1 {[%emt 0:03:09]} Bxb4 {[%emt 0:00:16]} 36. Ne5 {[%emt 0:02:05]} Kg7 {[%emt 0:05:45]} 37. Nd3 {[%emt 0:02:45]} Bd6 {[%emt 0:00:13]} 38. f3 {[%emt 0:00:32]} Bd5 {[%emt 0:01:13]} 39. Bb3 {[%emt 0:01:14]} Bxb3 {[%emt 0:00:28]} 40. axb3 {[%emt 0:00:13]} a5 {[%emt 0:00:14]} 41. Ke2 {[%emt 0:30:26]} Kf6 {[%emt 0:32:15]} 42. Kd2 {[%emt 0:00:23]} g5 {[%emt 0:00:24]} 43. Kc3 {[%emt 0:01:12]} Be5+ {[%emt 0:00:20]} 44. Nxe5 {[%emt 0:00:32]} Kxe5 {[%emt 0:00:02]} 45. b4 {[%emt 0:00:30]} axb4+ {[%emt 0:00:27]} 46. Kb3 {[%emt 0:00:12]} Kd4 {[%emt 0:00:11]} 47. Kb2 {[%emt 0:00:19]} Ke3 {[%emt 0:00:08]} 48. Kb3 {[%emt 0:00:16]} Kf2 {[%emt 0:00:03]} 49. Kxb4 {[%emt 0:00:10]} Kxg2 {[%emt 0:00:04]} 50. Kxb5 {[%emt 0:00:31]} Kxf3 {[%emt 0:00:04]} 51. Kc4 {[%emt 0:00:10]} Ke2 {[%emt 0:00:20]} 52. Kd4 {[%emt 0:00:43]} f3 {[%emt 0:00:03]} 53. Ke5 {[%emt 0:00:52]} f2 {[%emt 0:00:03]} 54. Kxf5 {[%emt 0:00:18]} f1=Q+ {[%emt 0:00:05]} 55. Kg4 {[%emt 0:00:24]} Qf4+ {[%emt 0:00:16]} 56. Kh5 {[%emt 0:00:18] normal} 0-1